[Event "Late-Titled-Tuesday-Blitz-October-24-2023"]
[Site "Chess.com"]
[Date "2023.10.24"]
[Round "7"]
[White "igorkovalenko"]
[Black "dropstoneDP"]
[Result "0-1"]
[WhiteElo "2941"]
[BlackElo "3108"]
[TimeControl "180+1"]
[EndTime "15:14:39 PDT"]
[Termination "dropstoneDP won by resignation"]

1. c4 {[%clk 0:02:59.8]} 1... e5 {[%clk 0:02:59.4]} 2. Nc3 {[%clk 0:02:59.7]}
2... Nf6 {[%clk 0:02:59.5]} 3. Nf3 {[%clk 0:02:59.7]} 3... Nc6 {[%clk
0:03:00.1]} 4. g3 {[%clk 0:02:59.4]} 4... d5 {[%clk 0:02:59.8]} 5. cxd5 {[%clk
0:03:00.3]} 5... Nxd5 {[%clk 0:03:00.7]} 6. Bg2 {[%clk 0:03:00.7]} 6... Nb6
{[%clk 0:03:01.4]} 7. O-O {[%clk 0:03:00.8]} 7... Be7 {[%clk 0:03:02]} 8. a3
{[%clk 0:03:01]} 8... O-O {[%clk 0:03:01.5]} 9. b4 {[%clk 0:03:01.2]} 9... Be6
{[%clk 0:02:57.6]} 10. d3 {[%clk 0:02:58.1]} 10... f6 {[%clk 0:02:52]} 11. Bb2
{[%clk 0:02:55.4]} 11... Re8 {[%clk 0:02:48.8]} 12. e3 {[%clk 0:02:52.1]} 12...
Bf8 {[%clk 0:02:48.5]} 13. Qc2 {[%clk 0:02:51.9]} 13... Qd7 {[%clk 0:02:47.7]}
14. Rfd1 {[%clk 0:02:51.3]} 14... Bh3 {[%clk 0:02:46.5]} 15. b5 {[%clk
0:02:36.4]} 15... Bxg2 {[%clk 0:02:45.6]} 16. Kxg2 {[%clk 0:02:36.7]} 16... Na5
{[%clk 0:02:35.9]} 17. d4 {[%clk 0:02:26.5]} 17... exd4 {[%clk 0:02:32.9]} 18.
Rxd4 {[%clk 0:02:25.4]} 18... Qf7 {[%clk 0:02:33.2]} 19. Rad1 {[%clk 0:02:20.4]}
19... Nac4 {[%clk 0:02:32]} 20. a4 {[%clk 0:02:19.3]} 20... a6 {[%clk
0:02:21.3]} 21. Nd5 {[%clk 0:02:11.8]} 21... Nxb2 {[%clk 0:02:17.3]} 22. Nxb6
{[%clk 0:02:07.3]} 22... Nxd1 {[%clk 0:02:16.1]} 23. Nxa8 {[%clk 0:02:02.8]}
23... Nxe3+ {[%clk 0:02:15.6]} 24. fxe3 {[%clk 0:02:03.7]} 24... Rxa8 {[%clk
0:02:15.7]} 25. bxa6 {[%clk 0:02:00.7]} 25... Rxa6 {[%clk 0:02:12.7]} 26. Rd8
{[%clk 0:02:00.5]} 26... Rd6 {[%clk 0:02:12.4]} 27. Rxd6 {[%clk 0:01:52.8]}
27... Bxd6 {[%clk 0:02:11.1]} 28. e4 {[%clk 0:01:52.4]} 28... g6 {[%clk
0:02:10.7]} 29. Qb2 {[%clk 0:01:49.3]} 29... b6 {[%clk 0:02:09.4]} 30. Qc2
{[%clk 0:01:43.8]} 30... Kg7 {[%clk 0:02:07.2]} 31. Nd4 {[%clk 0:01:43.6]} 31...
Bc5 {[%clk 0:02:03.9]} 32. Nb3 {[%clk 0:01:37.9]} 32... Bd6 {[%clk 0:02:03.2]}
33. a5 {[%clk 0:01:36.7]} 33... bxa5 {[%clk 0:02:02.7]} 34. Nxa5 {[%clk
0:01:37.6]} 34... Qe6 {[%clk 0:02:02.8]} 35. Nc6 {[%clk 0:01:36.1]} 35... h5
{[%clk 0:02:00.4]} 36. Nd4 {[%clk 0:01:34]} 36... Qe5 {[%clk 0:02:00.3]} 37. Nf3
{[%clk 0:01:33.5]} 37... Qb5 {[%clk 0:01:58.3]} 38. Nd4 {[%clk 0:01:32.7]} 38...
Qe5 {[%clk 0:01:57.7]} 39. Nf3 {[%clk 0:01:32.8]} 39... Qc5 {[%clk 0:01:57.7]}
40. Qa4 {[%clk 0:01:31.3]} 40... Qe3 {[%clk 0:01:54.2]} 41. Qc2 {[%clk
0:01:24.8]} 41... g5 {[%clk 0:01:53.1]} 42. e5 {[%clk 0:00:45.4]} 42... Bxe5
{[%clk 0:01:51.6]} 43. Qc6 {[%clk 0:00:43]} 43... Qe2+ {[%clk 0:01:50]} 44. Kg1
{[%clk 0:00:42.6]} 44... Bd6 {[%clk 0:01:47.1]} 45. Qd7+ {[%clk 0:00:41.5]}
45... Kg6 {[%clk 0:01:46.8]} 46. Qc6 {[%clk 0:00:36]} 46... h4 {[%clk
0:01:43.7]} 47. gxh4 {[%clk 0:00:35]} 47... g4 {[%clk 0:01:42.9]} 48. h5+ {[%clk
0:00:35]} 48... Kh6 {[%clk 0:01:37.2]} 49. Qc3 {[%clk 0:00:21]} 49... Qxf3
{[%clk 0:01:22.6]} 0-1

[Event "Late-Titled-Tuesday-Blitz-October-24-2023"]
[Site "Chess.com"]
[Date "2023.10.24"]
[Round "7"]
[White "vladislavkovalev"]
[Black "Jospem"]
[Result "0-1"]
[WhiteElo "2872"]
[BlackElo "3080"]
[TimeControl "180+1"]
[EndTime "15:14:49 PDT"]
[Termination "Jospem won on time"]

1. e4 {[%clk 0:03:00.9]} 1... c5 {[%clk 0:03:00.1]} 2. Nf3 {[%clk 0:03:01.4]}
2... d6 {[%clk 0:03:00.6]} 3. Bb5+ {[%clk 0:03:01.8]} 3... Nd7 {[%clk
0:03:00.7]} 4. O-O {[%clk 0:03:01.9]} 4... a6 {[%clk 0:03:01.4]} 5. Bd3 {[%clk
0:03:02.6]} 5... e6 {[%clk 0:03:01.3]} 6. c3 {[%clk 0:03:02.2]} 6... Ngf6 {[%clk
0:03:01.9]} 7. Bc2 {[%clk 0:02:57.2]} 7... b5 {[%clk 0:02:58.4]} 8. d4 {[%clk
0:02:57.4]} 8... Qc7 {[%clk 0:02:58.9]} 9. Re1 {[%clk 0:02:54.1]} 9... Bb7
{[%clk 0:02:59.1]} 10. d5 {[%clk 0:02:48.3]} 10... e5 {[%clk 0:02:59.2]} 11. c4
{[%clk 0:02:48.1]} 11... b4 {[%clk 0:02:55.2]} 12. Nbd2 {[%clk 0:02:46.8]} 12...
g6 {[%clk 0:02:55.4]} 13. Nf1 {[%clk 0:02:46.6]} 13... Bg7 {[%clk 0:02:56.1]}
14. a3 {[%clk 0:02:40.8]} 14... O-O {[%clk 0:02:56.4]} 15. h3 {[%clk 0:02:30.3]}
15... a5 {[%clk 0:02:54.9]} 16. Ba4 {[%clk 0:02:23.9]} 16... Nb6 {[%clk
0:02:42.6]} 17. Bb5 {[%clk 0:02:22.8]} 17... Nh5 {[%clk 0:02:43.4]} 18. N3h2
{[%clk 0:02:09.2]} 18... Nf4 {[%clk 0:02:42.2]} 19. h4 {[%clk 0:01:21.4]} 19...
Nh5 {[%clk 0:01:48.9]} 20. Ng4 {[%clk 0:01:10.9]} 20... Bc8 {[%clk 0:01:47.3]}
21. Nfh2 {[%clk 0:00:57.4]} 21... Kh8 {[%clk 0:01:46.8]} 22. Ne3 {[%clk
0:00:55.9]} 22... Rb8 {[%clk 0:01:41.7]} 23. axb4 {[%clk 0:00:54.4]} 23... axb4
{[%clk 0:01:41.6]} 24. Qf3 {[%clk 0:00:54.3]} 24... Nd7 {[%clk 0:01:41.7]} 25.
Bd2 {[%clk 0:00:43.9]} 25... Ndf6 {[%clk 0:01:35.6]} 26. b3 {[%clk 0:00:34]}
26... Ng8 {[%clk 0:01:27.4]} 27. Ra2 {[%clk 0:00:32.9]} 27... Nh6 {[%clk
0:01:20.5]} 28. Rea1 {[%clk 0:00:30.6]} 28... f5 {[%clk 0:01:17.2]} 29. Ra7
{[%clk 0:00:30.2]} 29... Rb7 {[%clk 0:01:17.6]} 30. Rxb7 {[%clk 0:00:30.7]}
30... Qxb7 {[%clk 0:01:18.5]} 31. exf5 {[%clk 0:00:30.6]} 31... Nxf5 {[%clk
0:01:18.3]} 32. Nxf5 {[%clk 0:00:29.8]} 32... Bxf5 {[%clk 0:01:18.2]} 33. Bc6
{[%clk 0:00:25.6]} 33... Qc7 {[%clk 0:01:13.8]} 34. g4 {[%clk 0:00:10.3]} 34...
e4 {[%clk 0:01:12.9]} 35. Qd1 {[%clk 0:00:06.1]} 35... Qe7 {[%clk 0:00:59.6]}
36. gxf5 {[%clk 0:00:05.1]} 36... Qxh4 {[%clk 0:00:55.4]} 37. Ra8 {[%clk
0:00:04.7]} 37... Rxa8 {[%clk 0:00:55.7]} 38. Bxa8 {[%clk 0:00:05.6]} 38... gxf5
{[%clk 0:00:56.4]} 39. Nf1 {[%clk 0:00:01.4]} 39... f4 {[%clk 0:00:56.6]} 0-1

[Event "Late-Titled-Tuesday-Blitz-October-24-2023"]
[Site "Chess.com"]
[Date "2023.10.24"]
[Round "7"]
[White "IlanSchnaider"]
[Black "Apocalyps999"]
[Result "0-1"]
[WhiteElo "2746"]
[BlackElo "2359"]
[TimeControl "180+1"]
[EndTime "15:14:58 PDT"]
[Termination "Apocalyps999 won by resignation"]

1. d4 {[%clk 0:03:00.9]} 1... Nf6 {[%clk 0:02:58.7]} 2. c4 {[%clk 0:03:00.9]}
2... e6 {[%clk 0:02:58.3]} 3. g3 {[%clk 0:03:00.5]} 3... d5 {[%clk 0:02:58]} 4.
Nf3 {[%clk 0:03:00.2]} 4... Be7 {[%clk 0:02:57.8]} 5. Bg2 {[%clk 0:03:00.7]}
5... O-O {[%clk 0:02:57.7]} 6. O-O {[%clk 0:03:01.3]} 6... dxc4 {[%clk
0:02:56.2]} 7. Qc2 {[%clk 0:03:01.4]} 7... b5 {[%clk 0:02:55.8]} 8. a4 {[%clk
0:02:59.1]} 8... b4 {[%clk 0:02:49.8]} 9. Nfd2 {[%clk 0:02:57.7]} 9... c6 {[%clk
0:02:47.4]} 10. Nxc4 {[%clk 0:02:56.9]} 10... Qxd4 {[%clk 0:02:47.2]} 11. Rd1
{[%clk 0:02:54.9]} 11... Qc5 {[%clk 0:02:46.6]} 12. Be3 {[%clk 0:02:54.6]} 12...
Qh5 {[%clk 0:02:46.1]} 13. Bf3 {[%clk 0:02:53.7]} 13... Ng4 {[%clk 0:02:42.2]}
14. h4 {[%clk 0:02:13.8]} 14... Bxh4 {[%clk 0:02:16.7]} 15. Qe4 {[%clk
0:01:32.5]} 15... e5 {[%clk 0:01:36.3]} 16. Bxg4 {[%clk 0:00:54.1]} 16... Bxg4
{[%clk 0:01:37.2]} 17. Nxe5 {[%clk 0:00:51.8]} 17... Bxe2 {[%clk 0:01:32.6]} 18.
Re1 {[%clk 0:00:41.7]} 18... Bf6 {[%clk 0:01:29.7]} 19. Bf4 {[%clk 0:00:23.8]}
19... Bxe5 {[%clk 0:01:24.2]} 20. Bxe5 {[%clk 0:00:19.1]} 20... Bf3 {[%clk
0:01:21.5]} 21. Qh4 {[%clk 0:00:19.8]} 21... Qxh4 {[%clk 0:01:21.7]} 22. gxh4
{[%clk 0:00:20.7]} 22... Nd7 {[%clk 0:01:21.7]} 23. Bd6 {[%clk 0:00:17]} 23...
Rfe8 {[%clk 0:01:21.5]} 24. Nd2 {[%clk 0:00:17.7]} 24... Bd5 {[%clk 0:01:14]}
25. Bxb4 {[%clk 0:00:17.5]} 25... Ne5 {[%clk 0:01:14.5]} 26. Bc3 {[%clk
0:00:15.6]} 26... Ng6 {[%clk 0:01:12.2]} 27. h5 {[%clk 0:00:09.8]} 27... Nf4
{[%clk 0:01:12]} 28. h6 {[%clk 0:00:09.6]} 28... gxh6 {[%clk 0:01:08]} 29. Kh2
{[%clk 0:00:09.9]} 29... f5 {[%clk 0:01:08.1]} 30. Rg1+ {[%clk 0:00:09.5]} 30...
Ng6 {[%clk 0:01:08.5]} 31. Rae1 {[%clk 0:00:07.2]} 31... Kf7 {[%clk 0:01:08.9]}
32. Nf1 {[%clk 0:00:05.4]} 32... Rxe1 {[%clk 0:01:03.5]} 33. Bxe1 {[%clk
0:00:06.3]} 33... Nh4 {[%clk 0:01:04.3]} 34. Nd2 {[%clk 0:00:03.5]} 34... Re8
{[%clk 0:01:03.5]} 35. Kh3 {[%clk 0:00:03.4]} 35... Ng6 {[%clk 0:01:02.8]} 36.
Kh2 {[%clk 0:00:01.9]} 36... Nf4 {[%clk 0:01:03]} 37. b4 {[%clk 0:00:01.9]}
37... Nd3 {[%clk 0:01:03.2]} 38. f4 {[%clk 0:00:01.3]} 38... Rxe1 {[%clk
0:01:02.6]} 39. Rg3 {[%clk 0:00:01.7]} 39... Re2+ {[%clk 0:01:02.6]} 40. Kg1
{[%clk 0:00:01.4]} 40... Rxd2 {[%clk 0:01:02.6]} 41. b5 {[%clk 0:00:01.8]} 41...
Nxf4 {[%clk 0:01:02.5]} 42. bxc6 {[%clk 0:00:01.8]} 42... Bxc6 {[%clk
0:01:03.4]} 43. a5 {[%clk 0:00:02.2]} 43... Ne2+ {[%clk 0:01:04.3]} 44. Kf1
{[%clk 0:00:02.3]} 44... Nxg3+ {[%clk 0:01:05.2]} 45. Ke1 {[%clk 0:00:03.2]}
45... Re2+ {[%clk 0:01:05.2]} 46. Kd1 {[%clk 0:00:03.8]} 46... f4 {[%clk
0:01:05.6]} 47. a6 {[%clk 0:00:03.7]} 47... f3 {[%clk 0:01:06.5]} 0-1

[Event "Late-Titled-Tuesday-Blitz-October-24-2023"]
[Site "Chess.com"]
[Date "2023.10.24"]
[Round "7"]
[White "aghasiyevkamal"]
[Black "ShahxaibKhan"]
[Result "1-0"]
[WhiteElo "2595"]
[BlackElo "2428"]
[TimeControl "180+1"]
[EndTime "15:15:03 PDT"]
[Termination "aghasiyevkamal won on time"]

1. c4 {[%clk 0:03:00]} 1... e5 {[%clk 0:02:58.4]} 2. Nc3 {[%clk 0:02:59]} 2...
Nc6 {[%clk 0:02:59.3]} 3. Nf3 {[%clk 0:02:56.2]} 3... f5 {[%clk 0:02:57.7]} 4.
d4 {[%clk 0:02:14.3]} 4... e4 {[%clk 0:02:56.3]} 5. Ne5 {[%clk 0:02:04]} 5...
Nxe5 {[%clk 0:02:46.5]} 6. dxe5 {[%clk 0:02:03.8]} 6... Bb4 {[%clk 0:02:46]} 7.
Qb3 {[%clk 0:02:02.7]} 7... Qe7 {[%clk 0:02:44.6]} 8. a3 {[%clk 0:02:02]} 8...
Bxc3+ {[%clk 0:02:42.6]} 9. Qxc3 {[%clk 0:02:02.3]} 9... Nh6 {[%clk 0:02:37.5]}
10. Bxh6 {[%clk 0:01:58.3]} 10... gxh6 {[%clk 0:02:38]} 11. g3 {[%clk
0:01:50.8]} 11... O-O {[%clk 0:02:35.1]} 12. Bg2 {[%clk 0:01:50.4]} 12... Re8
{[%clk 0:02:33.5]} 13. f4 {[%clk 0:01:42.7]} 13... exf3 {[%clk 0:02:33.4]} 14.
exf3 {[%clk 0:01:43]} 14... Qxe5+ {[%clk 0:02:32.8]} 15. Qxe5 {[%clk 0:01:43.6]}
15... Rxe5+ {[%clk 0:02:33.6]} 16. Kf2 {[%clk 0:01:44.3]} 16... d6 {[%clk
0:02:21.4]} 17. f4 {[%clk 0:01:44.3]} 17... Rc5 {[%clk 0:02:14.5]} 18. Rhe1
{[%clk 0:01:42.9]} 18... Kf8 {[%clk 0:02:09.1]} 19. Bd5 {[%clk 0:01:37.2]} 19...
Bd7 {[%clk 0:02:03.2]} 20. b4 {[%clk 0:01:36.6]} 20... Rxd5 {[%clk 0:02:01.4]}
21. cxd5 {[%clk 0:01:36.9]} 21... c6 {[%clk 0:02:01.3]} 22. Rad1 {[%clk
0:01:31.2]} 22... c5 {[%clk 0:01:46.9]} 23. bxc5 {[%clk 0:01:29.7]} 23... dxc5
{[%clk 0:01:46.3]} 24. d6 {[%clk 0:01:30]} 24... Re8 {[%clk 0:01:43.2]} 25.
Rxe8+ {[%clk 0:01:17.7]} 25... Kxe8 {[%clk 0:01:42.7]} 26. Re1+ {[%clk
0:01:17.9]} 26... Kd8 {[%clk 0:01:38.5]} 27. Re7 {[%clk 0:01:17.6]} 27... b5
{[%clk 0:01:36.6]} 28. Ke3 {[%clk 0:01:14.8]} 28... a5 {[%clk 0:01:35.6]} 29.
Kd3 {[%clk 0:01:12.9]} 29... Bc6 {[%clk 0:01:32.9]} 30. Rc7 {[%clk 0:01:08.9]}
30... Be4+ {[%clk 0:01:26.6]} 31. Kc3 {[%clk 0:01:09]} 31... b4+ {[%clk
0:01:22]} 32. Kc4 {[%clk 0:01:09.1]} 32... bxa3 {[%clk 0:01:20.8]} 33. Rxc5
{[%clk 0:01:08]} 33... a4 {[%clk 0:00:46.1]} 34. Ra5 {[%clk 0:00:54.1]} 34...
Bc2 {[%clk 0:00:37.3]} 35. Kc3 {[%clk 0:00:52.6]} 35... Bb3 {[%clk 0:00:22.7]}
36. Ra7 {[%clk 0:00:52.2]} 36... h5 {[%clk 0:00:19.2]} 37. Rxh7 {[%clk
0:00:50.8]} 37... a2 {[%clk 0:00:01.7]} 38. Kb2 {[%clk 0:00:50]} 38... a3+
{[%clk 0:00:01.6]} 39. Ka1 {[%clk 0:00:49.9]} 1-0

[Event "Late-Titled-Tuesday-Blitz-October-24-2023"]
[Site "Chess.com"]
[Date "2023.10.24"]
[Round "7"]
[White "LiemLe"]
[Black "Cayse"]
[Result "1-0"]
[WhiteElo "2979"]
[BlackElo "2886"]
[TimeControl "180+1"]
[EndTime "15:15:12 PDT"]
[Termination "LiemLe won on time"]

1. Nf3 {[%clk 0:03:00.9]} 1... Nf6 {[%clk 0:02:59.6]} 2. c4 {[%clk 0:03:01.2]}
2... e6 {[%clk 0:02:59.6]} 3. Nc3 {[%clk 0:03:01.4]} 3... d5 {[%clk 0:02:59.9]}
4. e3 {[%clk 0:03:02.2]} 4... Be7 {[%clk 0:02:59.5]} 5. b3 {[%clk 0:03:02]} 5...
O-O {[%clk 0:02:59.4]} 6. Bb2 {[%clk 0:03:02.6]} 6... b6 {[%clk 0:02:49.8]} 7.
cxd5 {[%clk 0:02:59.9]} 7... Nxd5 {[%clk 0:02:48.3]} 8. Qc2 {[%clk 0:02:57.9]}
8... Bb7 {[%clk 0:02:24.6]} 9. a3 {[%clk 0:02:57.2]} 9... c5 {[%clk 0:02:20]}
10. h4 {[%clk 0:02:50.6]} 10... Nd7 {[%clk 0:02:18]} 11. Ng5 {[%clk 0:02:43.2]}
11... g6 {[%clk 0:02:08.1]} 12. Bd3 {[%clk 0:02:23.5]} 12... Bxg5 {[%clk
0:01:49.8]} 13. hxg5 {[%clk 0:02:22.8]} 13... Qxg5 {[%clk 0:01:47.4]} 14. Ne4
{[%clk 0:02:18.7]} 14... Qe7 {[%clk 0:01:47.3]} 15. O-O-O {[%clk 0:01:59.3]}
15... f5 {[%clk 0:01:47.3]} 16. Nc3 {[%clk 0:01:59.5]} 16... N7f6 {[%clk
0:01:39.5]} 17. f3 {[%clk 0:01:52.3]} 17... Nb4 {[%clk 0:01:33.9]} 18. axb4
{[%clk 0:01:50.5]} 18... cxb4 {[%clk 0:01:34.8]} 19. Nb5 {[%clk 0:01:38.1]}
19... Rac8 {[%clk 0:01:11.7]} 20. Bc4 {[%clk 0:01:38]} 20... Ba6 {[%clk
0:01:11.9]} 21. Nd4 {[%clk 0:01:21.4]} 21... Rf7 {[%clk 0:00:44.5]} 22. Bxa6
{[%clk 0:01:04.9]} 22... Rxc2+ {[%clk 0:00:44]} 23. Nxc2 {[%clk 0:01:05.8]}
23... Qd6 {[%clk 0:00:23.7]} 24. Rh4 {[%clk 0:00:57.2]} 24... Nd5 {[%clk
0:00:21.9]} 25. Rd4 {[%clk 0:00:46.8]} 25... Rc7 {[%clk 0:00:21.2]} 26. e4
{[%clk 0:00:42]} 26... fxe4 {[%clk 0:00:08.9]} 27. fxe4 {[%clk 0:00:42.9]} 27...
b5 {[%clk 0:00:05.2]} 28. Bxb5 {[%clk 0:00:31.2]} 28... Qb6 {[%clk 0:00:03.6]}
29. Bc4 {[%clk 0:00:30.2]} 29... Nf4 {[%clk 0:00:03.8]} 30. Kb1 {[%clk
0:00:26.6]} 30... Rxc4 {[%clk 0:00:01.9]} 31. Rxc4 {[%clk 0:00:26.4]} 31... Nd3
{[%clk 0:00:01.7]} 32. Rc8+ {[%clk 0:00:21.4]} 32... Kf7 {[%clk 0:00:01.3]} 33.
Rf1+ {[%clk 0:00:22.1]} 33... Ke7 {[%clk 0:00:01.6]} 34. Bf6+ {[%clk 0:00:22.1]}
34... Kd7 {[%clk 0:00:01.1]} 35. Rd8+ {[%clk 0:00:22.5]} 1-0

[Event "Late-Titled-Tuesday-Blitz-October-24-2023"]
[Site "Chess.com"]
[Date "2023.10.24"]
[Round "7"]
[White "TimGrutter03"]
[Black "tylityli"]
[Result "1-0"]
[WhiteElo "2536"]
[BlackElo "2314"]
[TimeControl "180+1"]
[EndTime "15:15:13 PDT"]
[Termination "TimGrutter03 won on time"]

1. a3 {[%clk 0:03:00.9]} 1... e5 {[%clk 0:02:55.2]} 2. e4 {[%clk 0:03:00.6]}
2... Nf6 {[%clk 0:02:53.5]} 3. Nc3 {[%clk 0:02:59.9]} 3... d5 {[%clk 0:02:52.8]}
4. exd5 {[%clk 0:02:55.5]} 4... Nxd5 {[%clk 0:02:53.7]} 5. Nf3 {[%clk
0:02:54.9]} 5... Nxc3 {[%clk 0:02:50.8]} 6. bxc3 {[%clk 0:02:50.2]} 6... Bd6
{[%clk 0:02:47.7]} 7. d4 {[%clk 0:02:42.6]} 7... e4 {[%clk 0:02:35.5]} 8. Ng5
{[%clk 0:02:38.3]} 8... Bf5 {[%clk 0:02:31.3]} 9. Bc4 {[%clk 0:02:15.3]} 9...
O-O {[%clk 0:02:19.9]} 10. O-O {[%clk 0:02:12.2]} 10... Bg6 {[%clk 0:02:14.8]}
11. Be3 {[%clk 0:02:02.3]} 11... h6 {[%clk 0:02:07.5]} 12. Nh3 {[%clk
0:02:02.3]} 12... Qh4 {[%clk 0:02:02.5]} 13. Qd2 {[%clk 0:01:56.6]} 13... Nc6
{[%clk 0:01:51]} 14. Nf4 {[%clk 0:01:52.6]} 14... Bf5 {[%clk 0:01:33.2]} 15.
Rab1 {[%clk 0:01:51.3]} 15... Rab8 {[%clk 0:01:30.5]} 16. g3 {[%clk 0:01:36]}
16... Qd8 {[%clk 0:01:17.8]} 17. Rfe1 {[%clk 0:01:30.3]} 17... Kh7 {[%clk
0:01:16.8]} 18. Bd5 {[%clk 0:01:22.3]} 18... Bxa3 {[%clk 0:01:08.9]} 19. Bxc6
{[%clk 0:01:17.4]} 19... bxc6 {[%clk 0:01:07.7]} 20. Ra1 {[%clk 0:01:17.1]}
20... Qe7 {[%clk 0:00:45.8]} 21. c4 {[%clk 0:01:10.9]} 21... Bb4 {[%clk
0:00:35.2]} 22. c3 {[%clk 0:01:10.8]} 22... Bd6 {[%clk 0:00:34.7]} 23. Rxa7
{[%clk 0:01:05.5]} 23... Ra8 {[%clk 0:00:26.8]} 24. Rea1 {[%clk 0:01:02.5]}
24... Rxa7 {[%clk 0:00:26.2]} 25. Rxa7 {[%clk 0:01:03.4]} 25... g5 {[%clk
0:00:20.1]} 26. Ne2 {[%clk 0:00:50.2]} 26... c5 {[%clk 0:00:19.7]} 27. dxc5
{[%clk 0:00:43.5]} 27... Bxc5 {[%clk 0:00:19.1]} 28. Bxc5 {[%clk 0:00:44.4]}
28... Qxc5 {[%clk 0:00:17.9]} 29. Qd4 {[%clk 0:00:45.3]} 29... Qd6 {[%clk
0:00:12.6]} 30. c5 {[%clk 0:00:40.3]} 30... Qc6 {[%clk 0:00:08.9]} 31. Qe5
{[%clk 0:00:36.7]} 31... Qe6 {[%clk 0:00:02.9]} 32. Qxc7 {[%clk 0:00:27.6]}
32... Kg6 {[%clk 0:00:01.8]} 33. Nd4 {[%clk 0:00:24.1]} 33... Qf6 {[%clk
0:00:01.4]} 34. Rb7 {[%clk 0:00:21.2]} 1-0

[Event "Late-Titled-Tuesday-Blitz-October-24-2023"]
[Site "Chess.com"]
[Date "2023.10.24"]
[Round "7"]
[White "MaxLeto"]
[Black "Lennis93"]
[Result "0-1"]
[WhiteElo "2568"]
[BlackElo "2769"]
[TimeControl "180+1"]
[EndTime "15:15:15 PDT"]
[Termination "Lennis93 won by checkmate"]

1. e4 {[%clk 0:03:00.9]} 1... c5 {[%clk 0:02:59.8]} 2. Nf3 {[%clk 0:03:01.2]}
2... Nc6 {[%clk 0:03:00.4]} 3. d4 {[%clk 0:03:01.8]} 3... cxd4 {[%clk
0:03:01.3]} 4. Nxd4 {[%clk 0:03:02.7]} 4... Nf6 {[%clk 0:03:01.7]} 5. Nc3 {[%clk
0:03:02.9]} 5... e5 {[%clk 0:03:02.1]} 6. Ndb5 {[%clk 0:03:03.5]} 6... d6 {[%clk
0:03:02.6]} 7. Bg5 {[%clk 0:03:03.8]} 7... a6 {[%clk 0:03:02.5]} 8. Na3 {[%clk
0:03:04.4]} 8... b5 {[%clk 0:03:02.9]} 9. Nd5 {[%clk 0:03:01.6]} 9... Be7 {[%clk
0:03:03]} 10. Bxf6 {[%clk 0:03:01.7]} 10... Bxf6 {[%clk 0:03:03.9]} 11. c4
{[%clk 0:03:02.3]} 11... b4 {[%clk 0:03:03.7]} 12. Nc2 {[%clk 0:03:03]} 12...
O-O {[%clk 0:03:03.9]} 13. g3 {[%clk 0:03:01.1]} 13... Bg5 {[%clk 0:03:03.3]}
14. Bg2 {[%clk 0:03:00.2]} 14... a5 {[%clk 0:03:03]} 15. b3 {[%clk 0:02:58.2]}
15... Ne7 {[%clk 0:02:58.2]} 16. O-O {[%clk 0:02:55.7]} 16... Nxd5 {[%clk
0:02:56.8]} 17. Qxd5 {[%clk 0:02:55.2]} 17... Be6 {[%clk 0:02:56.6]} 18. Qd3
{[%clk 0:02:55.9]} 18... Qb6 {[%clk 0:02:55.2]} 19. Rad1 {[%clk 0:02:55.2]}
19... Rfd8 {[%clk 0:02:53.8]} 20. Kh1 {[%clk 0:02:53.9]} 20... a4 {[%clk
0:02:49.4]} 21. f4 {[%clk 0:02:52.6]} 21... Bf6 {[%clk 0:02:49.2]} 22. Ne3
{[%clk 0:02:11.1]} 22... axb3 {[%clk 0:02:48.6]} 23. axb3 {[%clk 0:02:10.9]}
23... Ra2 {[%clk 0:02:28.8]} 24. f5 {[%clk 0:01:58.7]} 24... Bc8 {[%clk
0:02:26.7]} 25. Nd5 {[%clk 0:01:57.3]} 25... Qc5 {[%clk 0:02:25.9]} 26. Rd2
{[%clk 0:01:42.7]} 26... Ra3 {[%clk 0:02:24.1]} 27. Nxf6+ {[%clk 0:01:23.7]}
27... gxf6 {[%clk 0:02:25]} 28. Rfd1 {[%clk 0:01:21.3]} 28... Bb7 {[%clk
0:02:23.3]} 29. Qf3 {[%clk 0:01:19.9]} 29... Kf8 {[%clk 0:02:22.3]} 30. Rd3
{[%clk 0:01:17.5]} 30... Ke7 {[%clk 0:02:15.9]} 31. Qh5 {[%clk 0:01:14.8]} 31...
Ra2 {[%clk 0:02:11.4]} 32. Bf3 {[%clk 0:00:36.5]} 32... Qf2 {[%clk 0:02:07.3]}
33. Qxh7 {[%clk 0:00:33.2]} 33... Re2 {[%clk 0:01:53.6]} 34. Qh4 {[%clk
0:00:25.2]} 34... Re1+ {[%clk 0:01:32.2]} 35. Rxe1 {[%clk 0:00:25.5]} 35...
Qxe1+ {[%clk 0:01:33.1]} 36. Kg2 {[%clk 0:00:26.2]} 36... Ra8 {[%clk 0:01:33.4]}
37. Rd1 {[%clk 0:00:05.2]} 37... Ra2+ {[%clk 0:01:33.7]} 38. Kh3 {[%clk
0:00:05.1]} 38... Qf2 {[%clk 0:01:33.9]} 39. Kg4 {[%clk 0:00:03.1]} 39... Qe3
{[%clk 0:01:17.5]} 40. Qh8 {[%clk 0:00:01.8]} 40... Bxe4 {[%clk 0:01:10.4]} 41.
Rf1 {[%clk 0:00:02]} 41... Qg5+ {[%clk 0:00:56.1]} 42. Kh3 {[%clk 0:00:02]}
42... Bxf5+ {[%clk 0:00:56.6]} 43. g4 {[%clk 0:00:02.2]} 43... Be6 {[%clk
0:00:49.3]} 44. Qb8 {[%clk 0:00:02.3]} 44... Qh6+ {[%clk 0:00:46.8]} 45. Kg3
{[%clk 0:00:02]} 45... Qxh2# {[%clk 0:00:46.9]} 0-1